[Event "74th PGNiG TERMIKA POL-ch Women 2022"]
[Site "Kruszwica"]
[Date "2022.05.15"]
[Round "7.2"]
[White "Majdan, Joanna"]
[Black "Zawadzka, Jolanta"]
[Result "0-1"]
[ECO "B51"]
[WhiteElo "2325"]
[BlackElo "2409"]
[Annotator "TA"]
[PlyCount "80"]
[EventDate "2022.05.09"]
[EventType "tourn"]
[EventCountry "POL"]
[SourceTitle "playchess.com"]
[Source "ChessBase"]
[SourceQuality "1"]
[TimeControl "40/5400+30:1800+30"]

{[%evp 11,80,17,17,15,0,0,0,0,0,0,0,-14,0,-21,0,-13,0,-9,4,0,0,0,-10,-11,-14,-10,-12,-16,-16,-16,-17,-16,-17,-46,-47,-110,-91,-87,-91,-91,-77,-91,-91,-96,-75,-92,-89,-88,-86,-188,-178,-185,-181,-169,-178,-305,-296,-707,-698,-643,-544,-29975,-29976,-29976,-1285,-29977,-29978,-29978,-29979,-29979,-29980]} 1. e4 {[%emt 0:00:02]} c5 {[%emt 0:00:04]} 2. Nf3 {[%emt 0:00:17]} d6 {[%emt 0:00:05]} 3. Bb5+ {[%emt 0:00:07]} Nd7 {[%emt 0:00:05]} 4. d4 {[%emt 0:01:03]} cxd4 {[%emt 0:01:22]} 5. Qxd4 {[%emt 0:00:30]} a6 {[%emt 0:00:11]} 6. Bxd7+ {[%emt 0:00:06]} Bxd7 {[%emt 0:00:03]} 7. c4 {[%emt 0:01:17] 7.Nc3 is the modern continuation. B51: Sicilian: Moscow Variation (3 Bb5+) without 3...Bd7.} Nf6 {[%emt 0:00:25]} 8. O-O {[%emt 0:00:49]} g6 {[%emt 0:01:59]} 9. Nc3 {[%emt 0:06:44] The position is equal.} Bg7 {[%emt 0:00:52]} 10. Bg5 {[%emt 0:04:26]} O-O {[%emt 0:01:00]} 11. Qd3 {[%emt 0:02:44]} (11. c5 $5 {[%cal Rc5d6]}) 11... Rc8 {[%emt 0:04:05]} 12. Rac1 {[%emt 0:02:13] [#]} h6 $146 {[%emt 0:08:19]} (12... b5 $5) ({Predecessor:} 12... Be6 13. b3 Qa5 14. Qd2 Kh8 15. Rfe1 b5 16. Nd5 Qxd2 17. Nxd2 Rfe8 18. Nxf6 exf6 {½-½ (49) Lugovskoy,M (2502)-Alekseenko,K (2561) Loo 2016}) 13. Bh4 {[%emt 0:06:04]} Re8 {[%emt 0:04:19]} 14. b3 {[%emt 0:08:55]} Kh7 {[%emt 0:14:56]} 15. Bxf6 {[%emt 0:08:02]} Bxf6 {[%emt 0:00:49]} 16. Qd5 {[%emt 0:00:39]} Be6 {[%emt 0:02:46] This bishop pair is nice.} 17. Qxb7 {[%emt 0:03:16]} Bxc3 {[%emt 0:02:12]} 18. Rxc3 {[%emt 0:01:13]} Qa5 $1 {[%emt 0:00:17][%csl LRa2,LRc3]} 19. Rfc1 {[%emt 0:17:23][%cal Oe4e5]} Rc7 $36 {[%emt 0:00:58][%cal Bc8c7,Bc7b7,Bb7b4,Bb4a4][%mdl 2080] Black has some pressure.} 20. b4 {[%emt 0:00:04]} Rxb7 {[%emt 0:00:10]} 21. bxa5 {[%emt 0:00:04]} Rc8 {[%emt 0:00:19][%cal Oc8c4]} 22. Kf1 {[%emt 0:12:25]} Rb4 {[%emt 0:01:36]} 23. c5 {[%emt 0:04:52]} (23. a3 $15 Ra4 24. Nd2) 23... dxc5 {[%emt 0:02:03]} ({Reject} 23... Bxa2 $6 24. Nd2 $11) 24. Nd2 {[%emt 0:04:39]} c4 {[%emt 0:02:12] Black is more active.} ({Of course not} 24... Bxa2 $6 25. Rxc5 Rxc5 26. Rxc5 $11) 25. Ke2 {[%emt 0:00:21]} Kg7 {[%emt 0:00:28]} 26. Ke3 {[%emt 0:03:25]} Ra4 {[%emt 0:04:50][%csl LRa2,LRa5]} 27. a3 {[%emt 0:01:28]} f6 {[%emt 0:02:36]} 28. f4 {[%emt 0:05:43]} Kf7 {[%emt 0:08:12]} 29. h3 {[%emt 0:00:07]} h5 {[%emt 0:01:43] Inhibits g4.} 30. g4 {[%emt 0:02:22]} (30. Nf3 $17 {was the only defense.}) 30... hxg4 $19 {[%emt 0:04:31]} 31. hxg4 {[%emt 0:00:03]} Bxg4 {[%emt 0:00:24]} 32. Nxc4 {[%emt 0:00:24]} Rh8 {[%emt 0:04:28]} 33. Kd4 {[%emt 0:01:10]} (33. Rb1 $142) 33... Be6 {[%emt 0:00:26]} 34. Kc5 $2 {[%emt 0:00:55] [#]} (34. f5 gxf5 35. exf5 Bxf5 36. Kc5) 34... Rc8+ {[%emt 0:01:36]} 35. Kd4 {[%emt 0:00:03]} Bxc4 {[%emt 0:06:01]} 36. Rxc4 {[%emt 0:00:03]} e5+ {[%emt 0:00:36]} 37. fxe5 {[%emt 0:00:05]} fxe5+ {[%emt 0:00:01]} (37... Raxc4+ $142 38. Rxc4 fxe5+ 39. Kd5 Rxc4 40. Kxc4 g5 41. Kd3 Kg6 42. Ke2 g4 43. Kf2 Kg5 44. Kg3 Kh5 45. Kh2 Kh4 46. Kg2 g3 47. Kh1 Kg4 48. Kg2 Kf4 49. a4 Kg4 50. Kg1 Kf3 51. Kh1 Kxe4 52. Kg2 Kf4 53. Kh3 e4 54. Kg2 e3 55. Kf1 Kf3 56. Ke1 g2 57. Kd1 e2+ 58. Kc1 g1=Q+ 59. Kb2 e1=Q 60. Kb3 Qd1+ 61. Kb2 Qgd4+ 62. Ka3 Q1xa4#) 38. Kd5 {[%emt 0:00:52]} Raxc4 {[%emt 0:00:36] Black mates.} 39. Rxc4 {[%emt 0:00:04]} Rxc4 {[%emt 0:00:05]} 40. Kxc4 {[%emt 0:00:00]} g5 {Weighted Error Value: White=0.64/Black=0.29 (precise)} 0-1

[Event "74th PGNiG TERMIKA POL-ch Women 2022"]
[Site "Kruszwica"]
[Date "2022.05.15"]
[Round "7.3"]
[White "Antolak, Julia"]
[Black "Kulon, Klaudia"]
[Result "1/2-1/2"]
[ECO "B27"]
[WhiteElo "2371"]
[BlackElo "2305"]
[Annotator "TA"]
[PlyCount "78"]
[EventDate "2022.05.09"]
[EventType "tourn"]
[EventCountry "POL"]
[SourceTitle "playchess.com"]
[Source "ChessBase"]
[SourceQuality "1"]
[TimeControl "40/5400+30:1800+30"]

{[%evp 14,78,0,7,9,16,13,0,0,0,0,-2,10,18,27,16,28,22,87,87,97,56,66,63,82,88,93,58,63,56,62,7,1,0,0,2,34,37,47,53,77,41,73,62,80,79,83,84,86,83,84,81,81,0,0,-18,-15,-168,0,0,0,0,0,0,0,0,0]} 1. e4 {[%emt 0:00:02]} c5 {[%emt 0:00:04]} 2. Nf3 {[%emt 0:00:06]} g6 {[%emt 0:00:04]} 3. d4 {[%emt 0:01:20]} cxd4 {[%emt 0:00:04]} 4. Qxd4 {[%emt 0:00:05]} Nf6 {[%emt 0:00:04]} 5. Nc3 {[%emt 0:00:06]} Nc6 {[%emt 0:00:28]} 6. Qa4 {[%emt 0:00:07]} d6 {[%emt 0:00:49]} 7. e5 {[%emt 0:02:20]} dxe5 {[%emt 0:00:04]} 8. Nxe5 {[%emt 0:01:53]} Bd7 {[%emt 0:00:03] B27: Sicilian: 2 Nf3, unusual Black 2nd moves.} 9. Nxd7 {[%emt 0:02:13]} Nxd7 {[%emt 0:00:05]} 10. Be2 {[%emt 0:03:42] 10.Be3 is setting a new trend.} Bg7 {[%emt 0:06:15]} 11. O-O {[%emt 0:02:21]} Nb6 {[%emt 0:02:02]} 12. Qh4 {[%emt 0:03:09] [#]} Nd4 $146 {[%emt 0:02:00]} (12... Qd4 $5 {[%cal Rd4h4]} 13. Qg5 O-O $11) ({Predecessor:} 12... e6 13. Bg5 f6 14. Be3 O-O 15. Bc5 Rf7 16. Nb5 f5 17. Qxd8+ Rxd8 18. Nxa7 Na4 19. Nxc6 bxc6 {1-0 (49) Bengherabi,K (2150)-Erdogan,H (1833) Caleta 2019}) 13. Bd3 {[%emt 0:05:34]} O-O {[%emt 0:07:16]} 14. Bg5 {[%emt 0:04:44]} Re8 {[%emt 0:06:46]} 15. Rad1 {[%emt 0:05:24]} a6 {[%emt 0:11:46] Prevents Bb5.} (15... Qc7 $11) 16. Rfe1 $16 {[%emt 0:12:20]} Qd7 {[%emt 0:01:20]} 17. Rxe7 {[%emt 0:13:42]} Rxe7 {[%emt 0:00:11]} 18. Bxe7 {[%emt 0:00:07] [#] Hoping for Bc5.} Nf5 {[%emt 0:11:40]} 19. Bxf5 {[%emt 0:05:12]} Qxf5 {[%emt 0:00:02]} 20. Qb4 {[%emt 0:02:40] White is more active.} Re8 {[%emt 0:06:16]} (20... Qxc2 $2 21. Qxb6 Re8 22. Rd8 $18 (22. Qxb7 Bxc3 23. Qd7 Rxe7 $11)) 21. Qxb6 {[%emt 0:07:09] And now Rd8 would win.} Rxe7 {[%emt 0:01:35]} 22. h3 {[%emt 0:00:54]} ({Better is} 22. g3 $14) 22... Rd7 $11 {[%emt 0:09:16]} 23. Rxd7 {[%emt 0:03:07]} Qxd7 {[%emt 0:00:10][%mdl 4096] Endgame KQB-KQN} 24. Qe3 {[%emt 0:00:52]} h5 {[%emt 0:01:36]} 25. a3 {[%emt 0:06:31][%cal Ba2a3,Ba3a4][%mdl 32]} Kh7 {[%emt 0:02:12]} 26. Qd3 {[%emt 0:00:54]} Qe7 {[%emt 0:00:59]} 27. Qd2 {[%emt 0:01:16] Against Qe1+} Bh6 {[%emt 0:01:35]} 28. Qe2 {[%emt 0:00:15]} Qd7 {[%emt 0:02:44]} 29. Ne4 {[%emt 0:02:51] [#] Threatening mate with Nf6+.} Qe6 {[%emt 0:01:37] Against Nf6+} 30. a4 {[%emt 0:01:39]} h4 {[%emt 0:03:46]} 31. b3 {[%emt 0:02:24]} Qe5 {[%emt 0:01:18]} 32. Qc4 {[%emt 0:03:52]} Qf4 {[%emt 0:02:24]} 33. Nc5 {[%emt 0:04:59]} ({White should try} 33. Kf1 $16) 33... Qc1+ {[%emt 0:01:26]} 34. Qf1 {[%emt 0:00:28] Qxc1 is the strong threat.} Qxc2 {[%emt 0:04:06]} 35. Nxb7 {[%emt 0:00:52]} (35. Qc4 $1 $11 Qd1+ 36. Qf1) 35... Qc7 $2 {[%emt 0:00:53]} ({Black should play} 35... Qxb3 $19 36. Nd6 Bf4) 36. Qxa6 {[%emt 0:00:39] The position is equal.} Qc1+ {[%emt 0:03:16]} 37. Qf1 {[%emt 0:00:08] Threatens to win with Qxc1.} Qc7 {[%emt 0:00:15]} 38. Qb5 {[%emt 0:01:15] aiming for Nc5.} Qc1+ {[%emt 0:00:04]} 39. Qf1 {[%emt 0:00:11] Strongly threatening Qxc1.} Qc7 {[%emt 0:00:04] Weighted Error Value: White=0.19 (very precise) /Black=0.15 (very precise)} 1/2-1/2

[Event "74th PGNiG TERMIKA POL-ch Women 2022"]
[Site "Kruszwica"]
[Date "2022.05.15"]
[Round "7.4"]
[White "Kiolbasa, Oliwia"]
[Black "Kubicka, Anna"]
[Result "1/2-1/2"]
[ECO "C72"]
[WhiteElo "2375"]
[BlackElo "2245"]
[Annotator "TA"]
[PlyCount "223"]
[EventDate "2022.05.09"]
[EventType "tourn"]
[EventCountry "POL"]
[SourceTitle "playchess.com"]
[Source "ChessBase"]
[SourceQuality "1"]
[TimeControl "40/5400+30:1800+30"]

{[%evp 34,222,31,26,10,13,12,-7,47,58,42,17,43,-8,-18,-22,-20,-22,0,0,0,0,0,0,14,14,14,14,23,23,34,0,0,0,0,0,0,0,2,0,4,4,4,0,0,0,0,0,0,0,0,0,0,0,0,0,0,0,0,0,9,9,9,0,0,0,0,0,0,0,0,0,0,0,0,0,7,7,14,14,87,14,25,76,114,114,251,183,189,14,162,0,14,0,0,0,0,0,0,0,0,0,0,0,0,0,14,14,14,0,0,0,0,0,0,0,0,0,0,0,0,0,0,0,0,0,0,0,25,25,25,25,25,25,25,25,25,25,25,25,25,25,25,25,25,14,25,25,25,25,25,0,0,0,25,25,25,14,25,25,25,25,25,14,14,0,0,0,0,0,0,0,0,0,0,0,0,0,0,0,0,0,0,0,0,0,0,0,0,0,0]} 1. e4 {[%emt 0:00:03]} e5 {[%emt 0:00:07]} 2. Nf3 {[%emt 0:00:08]} Nc6 {[%emt 0:00:06]} 3. Bb5 {[%emt 0:00:08]} a6 {[%emt 0:00:08]} 4. Ba4 {[%emt 0:00:09]} d6 {[%emt 0:00:25]} 5. O-O {[%emt 0:02:00]} Bd7 {[%emt 0:00:07]} 6. d4 {[%emt 0:03:20]} Nxd4 {[%emt 0:00:43]} 7. Bxd7+ {[%emt 0:04:51]} Qxd7 {[%emt 0:00:06]} 8. Nxd4 {[%emt 0:01:21]} exd4 {[%emt 0:00:06]} 9. Qxd4 {[%emt 0:01:00]} Nf6 {[%emt 0:00:08]} 10. Nc3 {[%emt 0:05:23]} Be7 {[%emt 0:00:08]} 11. b3 {[%emt 0:01:09]} O-O {[%emt 0:09:05]} 12. Bb2 {[%emt 0:02:06]} Rae8 {[%emt 0:11:15]} 13. Rad1 {[%emt 0:12:15]} Bd8 {[%emt 0:03:09]} 14. h3 {[%emt 0:04:37]} Qc6 {[%emt 0:02:26]} 15. Rd3 {[%emt 0:06:26]} Nh5 {[%emt 0:06:50]} 16. Nd5 {[%emt 0:05:25]} Re6 {[%emt 0:14:34]} 17. Rc3 {[%emt 0:20:29]} Qd7 {[%emt 0:03:36]} 18. Qd1 {[%emt 0:00:10]} Nf6 {[%emt 0:14:54]} 19. Rg3 {[%emt 0:00:26]} g6 $1 {[%emt 0:00:54]} 20. Rf3 {[%emt 0:06:27]} Nxd5 {[%emt 0:05:21]} ({Black should play} 20... Nxe4 $11 21. Qd4 f6) 21. exd5 $14 {[%emt 0:08:48]} Re4 {[%emt 0:00:12]} 22. Qd3 {[%emt 0:01:47]} (22. Re1 $5 {[%cal Re1e4]} Rfe8 23. Rxe4 Rxe4 24. Qd2 $14) 22... f5 {[%emt 0:02:27]} 23. a4 {[%emt 0:07:03]} (23. Qc3 $2 Bf6 24. Qxf6 Rxf6 25. Bxf6 Qf7 $19) (23. Re3 $14) 23... Bg5 $11 {[%emt 0:04:08]} (23... Bf6 24. Bxf6 Rxf6 {[#]} 25. Qxe4 $1 fxe4 26. Rxf6 $16) 24. a5 {[%emt 0:01:31]} (24. Qc3 $2 Bf6 25. Qxf6 Rxf6 26. Bxf6 Qf7 $19) 24... Qb5 {[%emt 0:02:23]} 25. Bc1 {[%emt 0:04:46]} (25. Qc3 Bf6 26. Qd2 Re2 $17) 25... Bxc1 {[%emt 0:01:57]} 26. Qxb5 {[%emt 0:00:05]} axb5 {[%emt 0:00:03]} 27. Rxc1 {[%emt 0:00:04]} Rd4 {[%emt 0:05:07]} 28. Rd3 {[%emt 0:00:53]} Rxd3 {[%emt 0:01:15]} 29. cxd3 {[%emt 0:00:04]} Rf7 {[%emt 0:00:42]} 30. f4 {[%emt 0:00:34]} Kf8 {[%emt 0:03:43]} 31. Kf2 {[%emt 0:00:26]} Ke8 {[%emt 0:00:29]} 32. a6 {[%emt 0:01:17]} bxa6 {[%emt 0:00:08]} 33. Ra1 {[%emt 0:00:04]} Kd7 {[%emt 0:00:53]} 34. Rxa6 {[%emt 0:00:24]} Rf8 {[%emt 0:00:19]} 35. b4 {[%emt 0:00:56]} Rb8 {[%emt 0:01:06]} 36. Ra7 {[%emt 0:00:31]} Re8 {[%emt 0:01:04]} 37. Ra5 {[%emt 0:00:52]} Rb8 {[%emt 0:00:41]} 38. Ra7 {[%emt 0:00:44]} h6 {[%emt 0:04:56]} 39. Kf3 {[%emt 0:00:28]} Re8 {[%emt 0:00:14]} 40. Ra1 {[%emt 0:00:00]} g5 {[%emt 0:00:00]} 41. Ra5 {[%emt 0:20:09]} Re1 {[%emt 0:05:19]} 42. Rxb5 {[%emt 0:02:03]} Rf1+ {[%emt 0:03:37]} 43. Ke2 {[%emt 0:00:13]} Rxf4 {[%emt 0:00:23]} 44. g3 {[%emt 0:01:41]} Rd4 {[%emt 0:02:02]} 45. Ke3 {[%emt 0:00:05]} c5 $1 {[%emt 0:01:21]} 46. dxc6+ {[%emt 0:01:55]} Kxc6 {[%emt 0:00:12]} 47. Rxf5 {[%emt 0:01:56]} Rxb4 {[%emt 0:00:25]} 48. Rf6 {[%emt 0:02:12]} h5 {[%emt 0:07:24]} 49. Rf5 {[%emt 0:00:04]} h4 $1 {[%emt 0:01:43]} 50. Rxg5 {[%emt 0:01:11]} hxg3 {[%emt 0:00:07]} 51. Rg4 {[%emt 0:00:21]} ({Much less strong is} 51. Rxg3 $6 Rh4 $16) 51... g2 {[%emt 0:01:42]} (51... Rxg4 52. hxg4 Kd5 53. Kf3 g2 54. Kxg2 Ke5 55. Kg3 d5 56. Kh4) 52. Rxg2 {[%emt 0:02:05]} Rh4 {[%emt 0:00:05]} 53. Rg3 {[%emt 0:00:19]} Kd5 {[%emt 0:00:59]} 54. Kf2 {[%emt 0:01:10]} Ke5 {[%emt 0:01:04]} 55. Kg2 {[%emt 0:01:21]} Rh8 {[%emt 0:01:28]} 56. Rg4 {[%emt 0:00:17]} Ra8 {[%emt 0:01:00]} (56... d5 $11 {keeps the balance.}) 57. Kf3 {[%emt 0:00:51]} (57. Re4+ $16 Kf5 58. Kf3) 57... Rf8+ {[%emt 0:02:44]} 58. Ke3 {[%emt 0:00:25]} (58. Kg3 $11) 58... Rh8 {[%emt 0:00:29]} 59. h4 {[%emt 0:00:17]} Ra8 {[%emt 0:02:57]} (59... Rh5 $16 60. Re4+ (60. Rg5+ Rxg5 61. d4+ Kf6 $11) 60... Kf6 61. Rf4+ Kg7 62. Rg4+ Kf6 63. Rf4+ Kg6) 60. Rg5+ {[%emt 0:01:11]} Kf6 {[%emt 0:00:21]} 61. Rb5 $2 {[%emt 0:00:43]} (61. Ke4 $18) 61... Ra1 {[%emt 0:00:44]} (61... Ra4 $1 $11) 62. h5 $2 {[%emt 0:01:08]} (62. Rd5 $18) 62... Rh1 {[%emt 0:00:20]} 63. d4 {[%emt 0:00:36]} Rh3+ {[%emt 0:01:15]} 64. Ke4 {[%emt 0:00:13]} Rh4+ {[%emt 0:00:59]} 65. Kd3 {[%emt 0:00:06]} Rh3+ {[%emt 0:00:32]} 66. Kc4 {[%emt 0:00:06]} Rh1 {[%emt 0:03:22]} 67. Rd5 {[%emt 0:00:26]} Ke6 {[%emt 0:00:15]} 68. Rg5 {[%emt 0:00:13]} d5+ {[%emt 0:00:21]} 69. Kc3 {[%emt 0:01:58]} Rh3+ {[%emt 0:00:32]} 70. Kb4 {[%emt 0:00:14]} Rh1 {[%emt 0:00:40]} 71. Kc5 {[%emt 0:00:35]} Rc1+ {[%emt 0:00:27]} 72. Kb5 {[%emt 0:00:09]} Rb1+ {[%emt 0:01:40]} 73. Kc6 {[%emt 0:00:29]} Rc1+ {[%emt 0:00:11]} 74. Kb6 {[%emt 0:00:04]} Rb1+ {[%emt 0:02:04]} 75. Kc7 {[%emt 0:00:24]} Rc1+ {[%emt 0:00:10]} 76. Kb7 {[%emt 0:01:08]} Rb1+ {[%emt 0:00:04]} 77. Ka7 {[%emt 0:00:20]} Rd1 {[%emt 0:01:17]} 78. Rg4 {[%emt 0:00:49]} Rh1 {[%emt 0:00:20]} 79. Kb6 {[%emt 0:00:36]} Kf5 {[%emt 0:01:05]} 80. Rg8 {[%emt 0:00:14]} Rxh5 {[%emt 0:01:37]} 81. Re8 {[%emt 0:00:44]} Kf6 {[%emt 0:00:48]} 82. Kc6 {[%emt 0:00:24]} Kf7 {[%emt 0:00:21]} 83. Re1 {[%emt 0:00:29]} Kf8 {[%emt 0:00:59]} 84. Kc5 {[%emt 0:00:44]} Kf7 {[%emt 0:00:11]} 85. Kd6 {[%emt 0:00:05]} Kf8 {[%emt 0:00:22]} 86. Re2 {[%emt 0:00:32]} Kf7 {[%emt 0:00:11]} 87. Re7+ {[%emt 0:00:03]} Kf8 {[%emt 0:00:51]} 88. Re3 {[%emt 0:00:08]} Kf7 {[%emt 0:00:06]} 89. Kc6 {[%emt 0:00:07]} Kf8 {[%emt 0:00:16]} 90. Kc5 {[%emt 0:00:03]} Kf7 {[%emt 0:00:13]} 91. Kd6 {[%emt 0:00:07]} Kf8 {[%emt 0:00:03]} 92. Kd7 {[%emt 0:03:01]} Rh7+ {[%emt 0:00:10]} 93. Kc6 {[%emt 0:00:12]} Rh5 {[%emt 0:00:15]} 94. Re1 {[%emt 0:00:21]} Rg5 {[%emt 0:01:14]} 95. Kd7 {[%emt 0:00:24]} Rg7+ {[%emt 0:00:09]} 96. Kd6 {[%emt 0:00:03]} Rg5 $1 {[%emt 0:00:15]} 97. Ke6 {[%emt 0:00:55]} Rh5 {[%emt 0:00:34]} 98. Kf6 {[%emt 0:00:21]} Rh6+ {[%emt 0:01:41]} 99. Kg5 {[%emt 0:00:35]} (99. Ke5 $5 {[%cal Re5d5]} Ke7 100. Kxd5+ Kd7 101. Ra1 $11) 99... Rh2 {[%emt 0:00:31]} 100. Kf5 {[%emt 0:00:53]} Rh4 {[%emt 0:01:19]} 101. Ke5 {[%emt 0:00:12]} Re4+ {[%emt 0:00:38]} 102. Rxe4 {[%emt 0:00:07]} dxe4 {[%emt 0:00:02]} 103. Kxe4 {[%emt 0:00:12]} (103. d5 {leads to mate.} e3 104. Kf5 e2 105. Ke6 e1=Q+ 106. Kf6 Qe4 107. d6 Ke8 108. Kg5 Kd7 109. Kf6 Kxd6 110. Kf7 Qe5 111. Kf8 Ke6 112. Kg8 Qg3+ 113. Kh8 Kf7 114. Kh7 Qh4#) 103... Ke8 {[%emt 0:00:06]} 104. Kf5 {[%emt 0:00:31]} Kd7 {[%emt 0:00:17]} 105. Ke5 {[%emt 0:00:03]} Ke7 {[%emt 0:00:03]} 106. d5 {[%emt 0:00:03]} Kd7 {[%emt 0:00:06]} 107. d6 {[%emt 0:00:03]} Kd8 {[%emt 0:00:38]} 108. Kf6 {[%emt 0:00:04]} Kd7 {[%emt 0:00:11]} 109. Ke5 {[%emt 0:00:02]} Kd8 {[%emt 0:00:12]} 110. Ke6 {[%emt 0:00:03]} Ke8 {[%emt 0:00:06]} 111. d7+ {[%emt 0:00:02]} Kd8 {[%emt 0:00:03]} 112. Kd6 {[%emt 0:00:03]} 1/2-1/2

[Event "74th PGNiG TERMIKA POL-ch Women 2022"]
[Site "Kruszwica"]
[Date "2022.05.15"]
[Round "7.5"]
[White "Cyfka, Karina"]
[Black "Malicka, Maria"]
[Result "0-1"]
[ECO "D85"]
[WhiteElo "2404"]
[BlackElo "2377"]
[Annotator "TA"]
[PlyCount "112"]
[EventDate "2022.05.09"]
[EventType "tourn"]
[EventCountry "POL"]
[SourceTitle "playchess.com"]
[Source "ChessBase"]
[SourceQuality "1"]
[TimeControl "40/5400+30:1800+30"]

{[%evp 23,112,0,0,0,0,0,0,-69,-61,-56,-76,-76,-40,-25,-8,-6,-7,-1,-18,-37,-34,-22,0,-64,-64,-66,-50,-66,-64,-59,-62,-78,-62,-95,-95,-86,-79,-265,-260,-229,-239,-252,-252,-239,-237,-226,-231,-361,-362,-360,-345,-342,-322,-312,-312,-352,-327,-539,-539,-519,-504,-1008,-980,-895,-935,-882,-831,-799,-759,-1175,-1097,-1873,-1610,-29950,-29958,-29952,-29951,-29973,-29974,-29974,-29975,-29975,-29976,-29968,-29971,-29969,-29970,-29973,-29973,-9520,-5302]} 1. d4 {[%emt 0:00:03]} Nf6 {[%emt 0:00:03]} 2. c4 {[%emt 0:00:06]} g6 {[%emt 0:00:06]} 3. Nc3 {[%emt 0:00:24]} d5 {[%emt 0:00:08]} 4. cxd5 {[%emt 0:06:54]} Nxd5 {[%emt 0:00:07]} 5. e4 {[%emt 0:04:18]} Nxc3 {[%emt 0:00:07]} 6. bxc3 {[%emt 0:00:02][%cal Bb2c3,Bc3d4,Bd4d5][%mdl 32]} Bg7 {[%emt 0:00:05]} 7. Be3 {[%emt 0:00:07]} c5 {[%emt 0:00:44]} 8. Rc1 {[%emt 0:00:26]} O-O {[%emt 0:05:27]} 9. Nf3 {[%emt 0:01:23]} Qa5 {[%emt 0:06:26]} 10. Qd2 {[%emt 0:00:39]} cxd4 {[%emt 0:00:26]} 11. cxd4 {[%emt 0:00:07]} Qxd2+ {[%emt 0:00:05]} 12. Kxd2 {[%emt 0:00:39]} Nc6 {[%emt 0:01:23]} 13. d5 {[%emt 0:00:48] D85: Exchange Grünfeld: Unusual White 7th moves and lines with 7 Nf3.} Rd8 {[%emt 0:00:29]} 14. Kc2 {[%emt 0:04:37]} Na5 {[%emt 0:10:25]} 15. Bd2 {[%emt 0:24:48]} ({Better is} 15. Bg5 $11) 15... b6 $15 {[%emt 0:00:44]} 16. Bxa5 {[%emt 0:03:13]} bxa5 {[%emt 0:00:07]} 17. Bc4 {[%emt 0:00:07]} Rb8 {[%emt 0:11:09]} (17... Bb7 $5 {[%cal Ra8c8]}) 18. Rb1 {[%emt 0:03:25] Prevents Rb2+.} Rb4 {[%emt 0:00:06] [#]} 19. Nd2 $146 {[%emt 0:12:25]} ({Predecessor:} 19. Rxb4 axb4 20. Kb3 a5 21. Ka4 Bc3 22. Bb3 Ba6 23. Kxa5 Bd3 24. e5 Be4 25. Rd1 Bxf3 26. gxf3 {½-½ (75) Trippold,D (1803)-Mira,H (2069) Austria 2014}) 19... Bd7 {[%emt 0:06:08]} 20. Rxb4 {[%emt 0:06:19]} axb4 {[%emt 0:00:04]} 21. Nb3 {[%emt 0:00:30]} Rc8 {[%emt 0:17:16]} 22. Kd3 {[%emt 0:00:18]} e6 {[%emt 0:00:09]} 23. Nd4 {[%emt 0:06:53]} (23. dxe6 $11 fxe6 24. f4) 23... exd5 {[%emt 0:06:42]} 24. exd5 {[%emt 0:00:10]} Kf8 {[%emt 0:01:15]} 25. Re1 {[%emt 0:00:16]} a5 {[%emt 0:00:15][%cal Ba7a5,Ba5a4,Ba4b3,Bb3b2][%mdl 32]} 26. f3 {[%emt 0:02:59]} h5 {[%emt 0:00:59]} 27. Re2 {[%emt 0:02:51]} a4 {[%emt 0:05:39]} 28. Re1 {[%emt 0:01:13]} Ra8 {[%emt 0:04:50]} 29. Re2 {[%emt 0:04:26]} Bf6 {[%emt 0:00:06]} 30. Bb5 $2 {[%emt 0:02:54] Loses the game.} (30. f4 $17 {was called for.}) 30... Bxb5+ $19 {[%emt 0:07:34]} 31. Nxb5 {[%emt 0:00:01][%mdl 4096] Endgame KRB-KRN} b3 {[%emt 0:00:35]} 32. axb3 {[%emt 0:08:17]} axb3 {[%emt 0:00:56] [#] ...b2 is the strong threat.} 33. Nc3 {[%emt 0:00:31]} Rc8 {[%emt 0:01:23]} 34. Na4 {[%emt 0:00:39]} Rb8 {[%emt 0:03:43] Strongly threatening ...b2.} 35. Re1 {[%emt 0:02:08]} (35. Nc3 $142) 35... b2 {[%emt 0:06:15]} 36. Rb1 {[%emt 0:00:37] [#]} Rb4 $1 {[%emt 0:00:04]} 37. Nc5 {[%emt 0:00:09]} Rd4+ {[%emt 0:00:04]} 38. Ke2 {[%emt 0:01:08]} Rxd5 {[%emt 0:00:06]} 39. Nd3 {[%emt 0:00:26]} Bc3 {[%emt 0:03:59]} 40. Ke3 $2 {[%emt 0:00:00]} (40. g3) 40... Ra5 {[%emt 0:00:00] White must now prevent ...Ra1.} 41. Nxb2 {[%emt 0:06:24]} Rb5 {[%emt 0:02:29]} 42. Nd1 {[%emt 0:00:13]} (42. Rc1 $142 Bxb2 43. Rc2) 42... Rxb1 {[%emt 0:00:47]} 43. Nxc3 {[%emt 0:00:01] KR-KN} Rb3 {[%emt 0:01:53]} 44. Kd3 {[%emt 0:00:06]} Ke7 {[%emt 0:01:36]} 45. Kc2 {[%emt 0:00:07]} Ra3 {[%emt 0:00:13]} 46. Ne2 {[%emt 0:00:08]} h4 {[%emt 0:05:33][%cal Oh4h3] Threatens to win with ...h3!} 47. h3 {[%emt 0:00:20]} Ra5 {[%emt 0:01:45] aiming for ...Rg5.} 48. Kd2 {[%emt 0:02:45]} Rg5 {[%emt 0:00:35]} 49. Nf4 {[%emt 0:00:03]} Kf6 {[%emt 0:03:22]} 50. Ke2 {[%emt 0:00:38]} Kf5 {[%emt 0:02:31]} 51. Ke3 {[%emt 0:00:01]} Rg3 {[%emt 0:01:16]} 52. Ne2 {[%emt 0:00:33]} Rxg2 {[%emt 0:00:15]} 53. Nd4+ {[%emt 0:00:03]} Ke5 {[%emt 0:01:44]} 54. Nc6+ {[%emt 0:00:43]} Kd5 {[%emt 0:00:15]} 55. Nd8 {[%emt 0:00:07]} f6 {[%emt 0:00:25]} 56. Nf7 {[%emt 0:00:41]} Rg3 {[%emt 0:00:27] Weighted Error Value: White=0.59/Black=0.08 (flawless)} 0-1